Cogmind - Beta 15 @@@ ROGUE MODE // 2025.07.13 @ 06:16:08 Player: puppuppit Result: System corrupted Performance ------------- Evolutions (4) 2000 Regions Visited (12) 2400 Robots Destroyed (393) 1965 Value Destroyed (10885) 10885 Prototype IDs (27) 540 Alien Tech Used (0) 0 Bonus (3924) 3924 TOTAL SCORE: 21714 Bonus ------- High Alert Combat Kills 2232 Follower Combat Kills 192 Entered Garrisons 200 Used RIF Installer 500 Registered with UFD 300 Met Optimus in HQ 500 Cogmind --------- Core Integrity 0/850 Matter 290/300 Energy 140/160 System Corruption 101% Temperature Cool (0) Movement Walking (120) Location -6/Garrison Parts ------- > --- POWER (1) -------- Light Fission Core > --- PROPULSION (5) --- Carbon-fiber Leg Flexi-carbon Leg Myomer Leg > --- UTILITY (5) ------ Large Storage Unit Improved Target Analyzer Core Analyzer System Shield > --- WEAPON (4) ------- Long-range Proton Cannon > --- INVENTORY (15) --- Light Fission Core Carbon-fiber Leg Gravmag System Gravmag Array Improved Gyrokinetic Inverter Combat Antigrav System Matter Compressor (250) Matter Compressor (250) DRS Beacon (Ready) Peak State ------------ > --- POWER ------------ Light Fission Core > --- PROPULSION ------- Wheel Wheel Wheel Armored Huge Wheel > --- UTILITY ---------- Advanced Heat Sink Large Storage Unit Target Analyzer Core Analyzer Centrium Medium Armor Plating > --- WEAPON ----------- Improved Heavy Laser Heavy Machine Gun Heavy Machine Gun Heavy Machine Gun > --- INVENTORY -------- Light Fission Core Light Fission Core Carbon-fiber Leg Armored Leg Combat Antigrav System Matter Compressor Matter Compressor Matter Compressor Heavy Machine Gun Heavy Machine Gun Heavy Machine Gun Magnetic Acceleration Cannon Magnetic Acceleration Cannon DRS Beacon [Rating: 66] Favorites ----------- Power Light Deuterium Engine Engine Light Deuterium Engine Power Core Light Fission Core Reactor Cold Fusion Reactor Propulsion Armored Treads Treads Armored Treads Leg Carbon-fiber Leg Wheel Wheel Hover Unit Combat Airjet Flight Unit Cesium-ion Thruster Utility Large Storage Unit Device Advanced Heat Sink Storage Large Storage Unit Processor Core Analyzer Hackware Hacking Suite Protection Core Shielding Weapon Heavy Assault Rifle Energy Gun Heavy Laser Energy Cannon Long-range Proton Cannon Ballistic Gun Heavy Assault Rifle Ballistic Cannon Magnetic Acceleration Cannon Launcher Improved Proton Missile Launcher Build | -11 -10 -10 -10 -9 -8 -8 -8 -8 -6 -6 -6 -6 ------- Run | Yrd Mat Min Exi Min Mat Sto Rec Scr Fac Was Fac Gar Slots Evolved 8 | . . . . . 4 . . . 4 . . . Power . | . . . . . . . . . . . . . Propulsion 3 | . . . . . 1 . . . 2 . . . Utility 3 | . . . . . 1 . . . 2 . . . Weapon 2 | . . . . . 2 . . . . . . . Parts Attached 177 | 7 8 8 1 . 29 26 8 5 17 2 43 23 Power 20 | 1 . 3 . . 3 6 . 1 1 . 4 1 Engine 10 | 1 . 1 . . 1 6 . 1 . . . . Core 9 | . . 2 . . 2 . . . 1 . 3 1 Reactor 1 | . . . . . . . . . . . 1 . Propulsion 62 | 2 . 1 . . 12 4 1 1 6 1 23 11 Treads 24 | 2 . 1 . . 12 3 1 1 2 . 2 . Leg 19 | . . . . . . . . . . . 8 11 Wheel 12 | . . . . . . . . . . . 12 . Hover 5 | . . . . . . 1 . . 3 . 1 . Flight 2 | . . . . . . . . . 1 1 . . Utility 46 | 2 5 . 1 . 7 9 3 1 6 1 8 3 Device 14 | 1 1 . . . 3 3 . . 1 . 4 1 Storage 6 | 1 2 . 1 . . . . 1 1 . . . Processor 10 | . 1 . . . . 1 . . 3 . 3 2 Hackware 5 | . . . . . . 1 3 . . . 1 . Protection 11 | . 1 . . . 4 4 . . 1 1 . . Artifact . | . . . . . . . . . . . . . Weapon 49 | 2 3 4 . . 7 7 4 2 4 . 8 8 Energy Gun 2 | . . . . . . . . . . . 1 1 Energy Cannon 4 | . . . . . . . . . . . 1 3 Ballistic Gun 36 | 2 2 3 . . 7 6 3 2 3 . 5 3 Ballistic Cannon 3 | . . . . . . 1 . . 1 . 1 . Launcher 4 | . 1 1 . . . . 1 . . . . 1 Special Weapon . | . . . . . . . . . . . . . Impact Weapon . | . . . . . . . . . . . . . Slashing Weapon . | . . . . . . . . . . . . . Piercing Weapon . | . . . . . . . . . . . . . Special Melee Weapon . | . . . . . . . . . . . . . Unidentified Prototypes 9 | . 1 . . . . 3 . . . 2 3 . Corrupted Parts 8 | . . . . . . . . . . . . 8 System Corruption 68 | . . . . . . . . . . . . 68 Parts Lost 68 | . 1 3 . . 2 17 4 . 5 4 4 28 Power 6 | . . 1 . . . 3 . . . . . 2 Propulsion 23 | . . 1 . . . 1 2 . 2 3 2 12 Utility 12 | . 1 . . . 1 5 . . 1 . 1 3 Weapon 27 | . . 1 . . 1 8 2 . 2 1 1 11 Highest Loss Streak 7 | . 1 3 . . 1 4 2 . 3 4 1 7 To Critical Strikes 1 | . . . . . . . . . . . . 1 Average Backups 12 | . 9 14 14 14 14 14 12 11 11 6 11 11 Power . | . . . 1 2 . . . . . . 1 1 Propulsion 1 | . . . 1 1 2 3 1 . . . 1 5 Utility 4 | . 2 4 3 4 5 4 5 5 5 2 3 3 Weapon 5 | . 5 9 8 7 5 5 5 4 4 2 4 1 Tool/Special . | . . . . . . . . . . . . . Unused Backups 47 | . 3 1 5 1 4 1 . 7 7 3 6 9 Power 5 | . . . . 1 2 . . . . 1 . 1 Propulsion 5 | . . . . . 1 . . . . . . 4 Utility 25 | . 1 . 3 . 1 1 . 5 6 2 3 3 Weapon 12 | . 2 1 2 . . . . 2 1 . 3 1 Tool/Special . | . . . . . . . . . . . . . Average Slot Usage (%) 92 | . 99 96 74 100 98 98 98 95 85 59 76 86 Engine 7 | . 14 6 14 14 5 8 9 9 3 . . . Core 1 | . . 4 . . 3 . . . 2 3 5 1 Treads 20 | . 27 27 28 28 25 26 27 23 12 . 3 . Leg 2 | . . . . . . . . . . . 4 24 Wheel 1 | . . . . . . . . . . . 14 . Device 2 | . 3 . . . 7 4 . . . . 4 5 Storage 9 | . 14 14 14 14 9 9 9 9 6 3 5 6 Processor 4 | . 8 7 . . . 3 . . 11 11 12 12 Hackware 7 | . . . . . . 4 17 18 11 4 . 6 Protection 3 | . 2 6 14 14 10 5 . . 1 6 2 . Ballistic Gun 28 | . 27 27 3 28 35 35 34 35 19 7 18 15 Peak Build Rating 66 | 9 13 15 16 16 34 36 30 32 61 55 66 65 Average Rating 31 | 6 11 13 10 16 29 29 28 28 45 35 52 58 On Entrance 23 | . 9 13 14 16 16 34 27 21 27 46 15 62 Naked Turns . | . . . . . . . . . . . . . Heaviest Build 56 | 15 31 32 32 32 46 53 46 39 50 44 55 56 Greatest Support 90 | 40 40 40 40 40 62 60 60 60 90 33 70 85 Greatest Overweight (x) 2 | . . . . . 1 . . . . 1 2 1 Average Overweight (x) . | . . . . . . . . . . . . . Largest Inventory Capacity 15 | 8 15 15 15 15 15 15 15 15 15 15 15 15 Average Capacity 14 | 7 11 15 15 15 15 15 15 15 15 10 13 15 Most Carried 15 | 2 15 15 15 15 15 15 15 15 15 12 15 15 Average Carried 12 | . 9 14 14 14 14 14 12 12 14 7 12 13 Final Capacity 15 | 8 15 15 15 15 15 15 15 15 15 5 15 15 Final Carried 15 | 2 15 15 15 14 15 15 15 15 15 4 15 10 Class Distribution -------------------- 47% | Scavenger-Gunner 25% | Mutant 11% | Tank 4% | Scavenger-Tank 4% | Commander-Gunner 3% | Gunner Dominant Class ---------------- Mutant | -10/Materials Mutant | -10/Mines Mutant | -10/Exiles Mutant | -9/Mines Tank | -8/Materials Scavenger-Gunner | -8/Storage Scavenger-Gunner | -8/Recycling Scavenger-Gunner | -8/Scraptown Scavenger-Gunner | -6/Factory Mutant | -6/Waste Scavenger-Gunner | -6/Factory Scavenger-Gunner | -6/Garrison Resources | -11 -10 -10 -10 -9 -8 -8 -8 -8 -6 -6 -6 -6 ----------- Run | Yrd Mat Min Exi Min Mat Sto Rec Scr Fac Was Fac Gar Matter Collected 13942 | 410 1073 366 51 112 3489 2794 521 61 810 250 2539 1466 Remotely . | . . . . . . . . . . . . . Salvage Created 17182 | 204 1503 588 . 161 3928 4462 1280 . 754 . 2584 1718 Parts 883 | 23 116 33 . 21 170 246 46 . 38 . 114 76 Haulers Intercepted 16 | . 2 . . . 6 5 . . . . 3 . Recyclers Shooed 21 | . 3 1 . . 3 6 1 . 2 . 5 . Parts Field Recycled . | . . . . . . . . . . . . . Retrieved Matter . | . . . . . . . . . . . . . Parts Self-Destructed . | . . . . . . . . . . . . . Prevented . | . . . . . . . . . . . . . Kills | -11 -10 -10 -10 -9 -8 -8 -8 -8 -6 -6 -6 -6 ------- Run | Yrd Mat Min Exi Min Mat Sto Rec Scr Fac Was Fac Gar Combat Hostiles Destroyed 209 | . 16 14 . 3 51 57 5 . 11 . 21 31 Guns 156 | . 10 6 . 3 48 46 5 . 6 . 21 11 Cannons 3 | . . . . . . . . . . . . 3 AOE 47 | . 6 8 . . 3 11 . . 5 . . 14 Classes Destroyed 19 | 3 5 2 . . 7 . 1 . . . . 1 Worker 50 | 2 12 1 . 2 9 15 . . . . 9 . Builder 33 | . 9 2 . 2 4 13 1 . 1 . 1 . Tunneler 12 | 5 2 1 . 2 1 . . . . . 1 . Hauler 16 | . 2 . . . 6 5 . . . . 3 . Recycler 54 | 1 7 3 . . 10 15 11 . 2 . 5 . Mechanic 6 | . . . . . 3 1 . . 1 . 1 . Operator 7 | . . . . . 3 3 . . . . 1 . Watcher 10 | . 3 . . . 5 2 . . . . . . Swarmer 35 | . 6 3 . 3 4 6 . . 2 . 3 8 Grunt 109 | . 10 3 . . 33 32 . . 3 . 12 16 Brawler 10 | . . . . . 4 2 . . 2 . . 2 Duelist 6 | . . . . . 2 3 . . . . . 1 Protector 2 | . . . . . 1 1 . . . . . . Sentry 28 | . . . . . 6 12 4 . 2 . 3 1 Demolisher 2 | . . 2 . . . . . . . . . . Hunter 7 | . . . . . 1 1 . . 3 . . 2 Programmer 5 | . . . . . . . 1 . 1 . 3 . Behemoth 1 | . . . . . . . . . . . . 1 Assembled 7 | . . 7 . . . . . . . . . . Best Kill Streak 26 | 7 9 7 . 6 12 26 4 . 3 . 8 6 Combat Bots Only 10 | . 3 7 . 3 9 10 2 . 3 . 3 6 Max Kills in Single Turn 4 | 1 3 4 . 1 3 3 2 . 3 . 1 2 Gunslinging 1 | . . . . . 1 . . . . . . . Exploded 3 | . 3 2 . . 1 3 . . 2 . . 2 Melee . | . . . . . . . . . . . . . Uniques/NPCs Destroyed . | . . . . . . . . . . . . . Combat | -11 -10 -10 -10 -9 -8 -8 -8 -8 -6 -6 -6 -6 -------- Run | Yrd Mat Min Exi Min Mat Sto Rec Scr Fac Was Fac Gar Hostile Shots Fired 1076 | . 42 40 . 10 219 231 18 . 122 4 154 236 Missed 336 | . 9 11 . 2 63 55 4 . 49 . 57 86 Hits 740 | . 33 29 . 8 156 176 14 . 73 4 97 150 Melee 14 | . . 3 . . . 2 . . . 4 . 5 Projectile 726 | . 33 26 . 8 156 174 14 . 73 . 97 145 AOE 9 | . . 8 . . . . . . 1 . . . Critical Strikes 28 | . 2 . . . 10 5 . . 3 1 5 2 Actively Blocked 2 | . . . . . . 1 . . . 1 . . Damage Taken 12401 | . 363 712 . 80 2200 2930 182 . 1457 173 1637 2667 Core 1554 | . 118 103 . 9 195 307 11 . 206 121 170 314 Absorbed by Shields 32 | . . . . . . . 22 . 10 . . . Redirected to Shielding 210 | . . . . 2 65 56 . . 26 34 27 . Ignored by Resistances 228 | . . . . . 228 . . . . . . . Regen/Repaired (Parts) 991 | . 150 . . . 205 198 . . 261 . 177 . Core Remaining (%) 38 | 100 . . . 8 . . . 6 . . . . Volleys Fired 796 | 15 104 33 . 12 181 166 27 . 45 4 96 113 Largest 4 | 2 2 2 . 2 4 4 4 . 4 3 4 4 Hottest 162 | 40 46 46 . 46 104 104 92 . 120 74 155 162 Shots Fired 2477 | 30 208 61 . 25 720 654 108 . 110 12 341 208 Gun 2375 | 30 206 56 . 25 715 639 108 . 100 12 340 144 Cannon 33 | . . . . . . 2 . . 6 . 1 24 Launcher 69 | . 2 5 . . 5 13 . . 4 . . 40 Special . | . . . . . . . . . . . . . Kinetic 2354 | 30 206 56 . 25 715 641 108 . 106 12 326 129 Thermal 30 | . . . . . . . . . . . 15 15 Explosive 29 | . 2 5 . . 5 13 . . 4 . . . Electromagnetic 64 | . . . . . . . . . . . . 64 Robot Hit Streak 20 | 7 20 14 . 8 20 19 18 . 9 4 15 8 Robot Miss Streak 9 | 2 5 2 . 2 6 6 2 . 4 3 5 9 Penetration Max 1 | . . . . . . . . . 1 1 . 1 Secondary Targets 35 | . . 1 . 2 15 9 . . . . 5 3 Max Gunslinging Chain 1 | . . 1 . 1 1 1 . . . . 1 1 Shots Hit Robots 1399 | 19 131 35 . 13 447 368 56 . 54 7 164 105 Core Hits 695 | 9 61 39 . 9 180 192 23 . 42 . 76 64 Critical Kills 8 | . 1 2 . . 2 2 . . . . 1 . Critical Parts Destroyed 8 | . . . . . 4 3 . . . . . 1 Critical Strikes 19 | . 1 2 . . 6 5 . . . . 2 3 Burn 1 | . . . . . . . . . . . 1 . Destroy 17 | . 1 2 . . 6 5 . . . . 1 2 Corrupt 1 | . . . . . . . . . . . . 1 Melee Attacks . | . . . . . . . . . . . . . Impact . | . . . . . . . . . . . . . Slashing . | . . . . . . . . . . . . . Piercing . | . . . . . . . . . . . . . Sneak Attacks . | . . . . . . . . . . . . . Combat Hostiles . | . . . . . . . . . . . . . Follow-up Attacks . | . . . . . . . . . . . . . Damage Inflicted 29812 | 263 2185 1191 . 191 7815 7316 1020 . 1592 178 4112 3949 Guns 23917 | 263 1932 550 . 191 7188 5718 1020 . 1113 174 4077 1691 Cannons 238 | . . . . . . . . . . . . 238 Explosions 5610 | . 253 641 . . 627 1590 . . 479 . . 2020 Melee . | . . . . . . . . . . . . . Ramming 47 | . . . . . . 8 . . . 4 35 . Kinetic 23505 | 263 1932 550 . 191 7188 5718 1020 . 1113 174 3872 1484 Thermal 802 | . . . . . . . . . 68 . 205 529 Explosive 3451 | . 253 641 . . 556 1590 . . 411 . . . Electromagnetic 2007 | . . . . . 71 . . . . . . 1936 Impact . | . . . . . . . . . . . . . Slashing . | . . . . . . . . . . . . . Piercing . | . . . . . . . . . . . . . Highest Corruption 101 | . 2 2 2 2 . 6 7 . . 15 22 101 Average Corruption 15 | . 2 2 2 2 . 3 6 . . 9 16 60 Corruption Purged 5 | . . . . . . . . . . . 5 . Corruption Blocked . | . . . . . . . . . . . . . Effects 342 | . 19 7 6 6 . 48 49 . . 7 86 114 Message Errors 63 | . 3 2 1 . . 8 6 . . 1 19 23 Matter Fused 79 | . 8 1 2 1 . 11 16 . . 2 21 17 Heat Flow Errors 38 | . 2 2 . 1 . 4 11 . . 1 8 9 Energy Discharges 33 | . 3 1 2 . . 1 6 . . 1 9 10 Parts Rejected 7 | . . 1 . . . 1 . . . . 1 4 Parts Fused 5 | . . . . 1 . 1 1 . . . 1 1 Data Loss (minor) 37 | . 1 . 1 1 . 9 6 . . 2 6 11 Data Loss (major) 10 | . . . . 1 . 2 1 . . . 1 5 Misfires 15 | . 2 . . 1 . 4 1 . . . 4 3 Alerts 1 | . . . . . . . . . . . 1 . Misdirections 9 | . . . . . . . . . . . 2 7 Weapon Failures 45 | . . . . . . 7 1 . . . 13 24 Overload Shots . | . . . . . . . . . . . . . Overflow Damage 68 | . . 17 . . . 51 . . . . . . Projectiles . | . . . . . . . . . . . . . Explosions 68 | . . 17 . . . 51 . . . . . . Melee . | . . . . . . . . . . . . . Knockbacks . | . . . . . . . . . . . . . Impact . | . . . . . . . . . . . . . Kinetic . | . . . . . . . . . . . . . Secondary . | . . . . . . . . . . . . . Self-Inflicted Damage 282 | . . 44 . . 22 45 . . . 2 120 49 Shots 12 | . . 2 . . 1 2 . . . . 2 5 Rammed 10 | . . . . 1 . 1 . . . 1 7 . Targets Rammed 11 | . . . . 1 . 1 . . . 1 8 . Kicked . | . . . . . . . . . . . . . Crushed 1 | . . . . . . . . . . . 1 . Highest Temperature 386 | . 153 259 . 202 386 250 277 . 208 63 231 231 Average Temperature 55 | . 35 59 . 91 53 55 69 . 40 44 65 47 Received Heat Transfer 4238 | . 213 107 . . 1386 1197 30 . 297 . 426 582 Effects 5 | . . . . . 3 . 2 . . . . . Energy Bleed 1 | . . . . . . . 1 . . . . . Interference 4 | . . . . . 3 . 1 . . . . . Siege Activations . | . . . . . . . . . . . . . Martial Activations . | . . . . . . . . . . . . . Shielding Activations . | . . . . . . . . . . . . . Robots Disrupted 1 | . . . . . . . . . . . . 1 Combat Hostiles 1 | . . . . . . . . . . . . 1 Robots Corrupted 3 | . . . . . . . . . . . . 3 Combat Hostiles 3 | . . . . . . . . . . . . 3 Parts Fried 4 | . . . . . . . . . . . . 4 Impact Corruptions . | . . . . . . . . . . . . . Robots Melted . | . . . . . . . . . . . . . Combat Hostiles . | . . . . . . . . . . . . . Parts Melted 3 | . . . . . . . 1 . . . . 2 Heat Transferred 1127 | . . . . . . . . . 50 . 370 707 Parts Sabotaged . | . . . . . . . . . . . . . Parts Stolen . | . . . . . . . . . . . . . Parts Stripped . | . . . . . . . . . . . . . Power Chain Reactions 6 | . . . . . . . . . . . . 6 Alert | -11 -10 -10 -10 -9 -8 -8 -8 -8 -6 -6 -6 -6 ------- Run | Yrd Mat Min Exi Min Mat Sto Rec Scr Fac Was Fac Gar Maximum Alert Level 4 | . 1 1 . . 3 4 2 . 1 . 2 4 Low Security (%) 49 | 100 81 86 . 100 22 . 71 . 93 100 65 . Level 1 12 | . 18 13 . . 23 . . . 6 . 26 7 Level 2 15 | . . . . . 15 34 28 . . . 7 29 Level 3 13 | . . . . . 38 11 . . . . . 42 Level 4 10 | . . . . . . 53 . . . . . 20 Level 5 . | . . . . . . . . . . . . . High Security . | . . . . . . . . . . . . . Max Security . | . . . . . . . . . . . . . Sterilizations 1 | . . . . . 1 . . . . . . . Peak Influence 1583 | 15 323 212 . 75 1037 1583 627 . 217 64 423 1274 Initial 611 | . . 123 . . . 425 611 . . 64 . 289 Average 393 | 5 89 140 . 19 534 966 235 . 65 28 134 801 Influence Increases 7728 | 40 768 234 . 100 1641 1924 338 . 664 . 794 1225 Destroy 0b10 Robot/C 4100 | . 320 140 . 60 1000 1120 120 . 300 . 420 620 Destroy 0b10 Robot/NC 965 | 40 175 35 . 30 210 275 70 . 25 . 105 . Destroy Leader 862 | . 80 30 . 10 242 294 . . 50 . 106 50 Allied During Kill 32 | . . . . . . . 8 . 24 . . . Trap Triggered on 0b10 30 | . . . . . . . . . 30 . . . Successful Hack 132 | . 28 . . . 49 4 30 . 19 . 2 . Select Force Hacks 170 | . 80 . . . . . 90 . . . . . Disable Machine 480 | . 75 . . . 60 105 15 . 75 . 105 45 Anti-Garrison Action 300 | . . . . . . . . . . . . 300 Destroy Structure 327 | . 10 29 . . 35 96 5 . 66 . 26 60 Partial Spotted 15 | . . . . . . . . . 15 . . . Lose Combat Pursuer 315 | . . . . . 45 30 . . 60 . 30 150 Influence Decreases 6494 | 40 451 494 57 100 633 1364 1862 44 479 185 380 405 Entered New Map 2081 | . . 194 57 . . 583 957 44 . 121 . 125 Time Decay 3339 | 40 441 230 . 100 613 601 565 . 379 50 320 . Lost Part 654 | . 10 30 . . 20 170 40 . 50 14 40 280 Lost Ally 120 | . . 40 . . . 10 . . 50 . 20 . Purge Threat 300 | . . . . . . . 300 . . . . . Squads Dispatched 55 | . 4 . . 1 14 16 . . 13 . 7 . Investigation 15 | . 4 . . . 3 2 . . 5 . 1 . Extermination 5 | . . . . . . . . . 2 . 3 . Reinforcement 16 | . . . . 1 4 5 . . 3 . 3 . Assault 5 | . . . . . 3 2 . . . . . . Garrison 14 | . . . . . 4 7 . . 3 . . . Intercept . | . . . . . . . . . . . . . Searches Triggered . | . . . . . . . . . . . . . Construction Impeded 7 | . . . . 1 1 2 . . 2 . 1 . Haulers Reinforced 2 | . . . . . . . . . . . 2 . Active Scanning Responses . | . . . . . . . . . . . . . Cargo Convoy Interrupts . | . . . . . . . . . . . . . Stealth | -11 -10 -10 -10 -9 -8 -8 -8 -8 -6 -6 -6 -6 --------- Run | Yrd Mat Min Exi Min Mat Sto Rec Scr Fac Was Fac Gar Distress Signals 6 | . 1 . . . 2 2 . . 1 . . . Communications Jammed . | . . . . . . . . . . . . . Distress Signals . | . . . . . . . . . . . . . Times Spotted 307 | . 25 28 . 4 76 64 5 . 32 6 27 40 Peak Tracking Total 18 | . 4 18 . 4 7 6 2 . 8 6 3 7 Tactical Retreats 20 | . . 3 . . 3 2 . . 3 . 1 8 Traps | -11 -10 -10 -10 -9 -8 -8 -8 -8 -6 -6 -6 -6 ------- Run | Yrd Mat Min Exi Min Mat Sto Rec Scr Fac Was Fac Gar Traps Triggered 22 | . 2 . . . 4 4 . . 2 . 1 9 Indirectly 5 | . . . . . . . . . . . . 5 Trap Hack Attempts . | . . . . . . . . . . . . . Triggered . | . . . . . . . . . . . . . Disarmed . | . . . . . . . . . . . . . Reprogrammed . | . . . . . . . . . . . . . Reused 3 | . . . . . . . . . 3 . . . Traps Extracted . | . . . . . . . . . . . . . Installed 3 | . . . . . . . . . 3 . . . Triggered 3 | . . . . . . . . . 3 . . . Most Traps Carried 3 | . . . . . . . . 3 3 . . . Machines | -11 -10 -10 -10 -9 -8 -8 -8 -8 -6 -6 -6 -6 ---------- Run | Yrd Mat Min Exi Min Mat Sto Rec Scr Fac Was Fac Gar Machines Disabled 36 | . 5 . . . 4 7 1 . 5 . 7 7 Max in Single Turn 2 | . 2 . . . 2 2 1 . 1 . 2 2 Garrison Access 1 | . . . . . 1 . . . . . . . Garrison Relay 4 | . . . . . . . . . . . . 4 Machines Repaired . | . . . . . . . . . . . . . Machines Dismantled . | . . . . . . . . . . . . . Machines Sabotaged 1 | . 1 . . . . . . . . . . . Overloaded Fab Kills . | . . . . . . . . . . . . . Hacking | -11 -10 -10 -10 -9 -8 -8 -8 -8 -6 -6 -6 -6 --------- Run | Yrd Mat Min Exi Min Mat Sto Rec Scr Fac Was Fac Gar Machines Accessed 57 | . 10 1 1 . 10 10 11 1 9 . 2 2 Terminals 25 | . 7 . . . 5 5 6 . . . . 2 Fabricators . | . . . . . . . . . . . . . Repair Stations 10 | . 1 . . . 1 2 . . 5 . 1 . Recycling Units 13 | . 2 . . . 2 2 5 . 2 . . . Scanalyzers 3 | . . . . . 1 . . . 2 . . . Garrison Access 3 | . . . . . 1 1 . . . . 1 . Total Hacks 191 | . 28 1 1 . 36 31 49 1 36 . 5 3 Successful 117 | . 20 1 1 . 21 11 32 1 27 . 3 . Failed 72 | . 7 . . . 15 20 16 . 9 . 2 3 Catastrophic 11 | . . . . . 3 1 3 . . . 1 3 Database Lockouts 2 | . 1 . . . . . 1 . . . . . Manual 117 | . 22 . . . 27 16 35 . 17 . . . Terminals 87 | . 18 . . . 18 17 31 . . . . 3 Fabricators . | . . . . . . . . . . . . . Repair Stations 35 | . 5 . . . 4 4 . . 18 . 4 . Recycling Units 48 | . 5 . . . 8 7 18 . 10 . . . Scanalyzers 12 | . . . . . 4 . . . 8 . . . Garrison Access 6 | . . . . . 2 3 . . . . 1 . Terminal Hacks 22 | . 5 1 1 . 2 2 10 1 . . . . Record 1 | . . . 1 . . . . . . . . . Part Schematic 1 | . . . . . . . 1 . . . . . Robot Analysis 5 | . 4 . . . . . 1 . . . . . Prototype ID Bank 5 | . . . . . 1 . 4 . . . . . Open Door 3 | . . 1 . . . 2 . . . . . . Branch Access Points 1 | . . . . . 1 . . . . . . . Terminal Index 1 | . . . . . . . 1 . . . . . Unreport Threat 2 | . . . . . . . 2 . . . . . Locate Traps 2 | . 1 . . . . . 1 . . . . . Proto ID Catalog 1 | . . . . . . . . 1 . . . . Fabricator Hacks . | . . . . . . . . . . . . . Repair Station Hacks 17 | . 4 . . . 4 . . . 7 . 2 . Scan Component 9 | . 2 . . . 2 . . . 4 . 1 . Repair 8 | . 2 . . . 2 . . . 3 . 1 . Recycling Unit Hacks 2 | . . . . . . . 2 . . . . . Retrieve Components 2 | . . . . . . . 2 . . . . . Scanalyzer 11 | . . . . . 3 . . . 8 . . . Insert Component 4 | . . . . . 1 . . . 3 . . . Analyze 7 | . . . . . 2 . . . 5 . . . Garrison Access Hacks 1 | . . . . . . . . . . . 1 . Unlock Access 1 | . . . . . . . . . . . 1 . Unauthorized Hacks 64 | . 11 . . . 12 9 20 . 12 . . . Terminals 26 | . 7 . . . 6 4 9 . . . . . Botnet 10 | . 1 . . . 3 2 4 . . . . . Skim 15 | . 5 . . . 3 2 5 . . . . . Sabotage 1 | . 1 . . . . . . . . . . . Fabricators . | . . . . . . . . . . . . . Repair Stations 6 | . . . . . . 2 . . 4 . . . Mechanics 1 | . . . . . . . . . 1 . . . Patch 5 | . . . . . . 2 . . 3 . . . Recycling Units 30 | . 4 . . . 5 2 11 . 8 . . . Reject 10 | . 2 . . . 2 1 3 . 2 . . . Recyclers 6 | . . . . . 1 1 2 . 2 . . . Mask 8 | . 1 . . . 2 . 3 . 2 . . . Tunnel 4 | . 1 . . . . . 3 . . . . . Fedlink 2 | . . . . . . . . . 2 . . . Scanalyzers . | . . . . . . . . . . . . . Garrison Access 2 | . . . . . 1 1 . . . . . . Intercept 2 | . . . . . 1 1 . . . . . . Data Cores Recovered . | . . . . . . . . . . . . . Used . | . . . . . . . . . . . . . Hacking Detections 44 | . 9 . . . 10 9 8 . 5 . 1 2 Full Trace Events 7 | . 1 . . . 4 1 . . . . 1 . Feedback Events . | . . . . . . . . . . . . . Feedback Blocked . | . . . . . . . . . . . . . Robot Schematics Acquired . | . . . . . . . . . . . . . Robots Built . | . . . . . . . . . . . . . Authchips . | . . . . . . . . . . . . . Time . | . . . . . . . . . . . . . Total Robot Build Rating . | . . . . . . . . . . . . . Part Schematics Acquired 4 | . . . . . . . 1 . 3 . . . Parts Built . | . . . . . . . . . . . . . Authchips . | . . . . . . . . . . . . . Time . | . . . . . . . . . . . . . Total Part Build Rating . | . . . . . . . . . . . . . Parts Repaired 7 | . 2 . . . 2 . . . 2 . 1 . Time 372 | . 52 . . . 64 . . . 161 . 95 . Parts Recycled . | . . . . . . . . . . . . . Recycled Matter . | . . . . . . . . . . . . . Retrieved Matter . | . . . . . . . . . . . . . Retrieved Components 2 | . . . . . . . 2 . . . . . Parts Scanalyzed 4 | . . . . . 1 . . . 3 . . . Part Schematics Acquired 3 | . . . . . . . . . 3 . . . Parts Damaged 1 | . . . . . . . . . 1 . . . Bothacking | -11 -10 -10 -10 -9 -8 -8 -8 -8 -6 -6 -6 -6 ------------ Run | Yrd Mat Min Exi Min Mat Sto Rec Scr Fac Was Fac Gar Used RIF Installer 1 | . . . . . . . . . . . . 1 Robots Hacked . | . . . . . . . . . . . . . Non-combat . | . . . . . . . . . . . . . Combat . | . . . . . . . . . . . . . Robot Hacks Applied . | . . . . . . . . . . . . . Relay Couplers Released 16 | . . . . . . . . . . . . 16 Machine Destruction 16 | . . . . . . . . . . . . 16 Fabnet Peak Effective % . | . . . . . . . . . . . . . Robots Rewired 5 | . . . . . . . 5 . . . . . Allies Hacked . | . . . . . . . . . . . . . Hacks Repelled . | . . . . . . . . . . . . . Allies | -11 -10 -10 -10 -9 -8 -8 -8 -8 -6 -6 -6 -6 -------- Run | Yrd Mat Min Exi Min Mat Sto Rec Scr Fac Was Fac Gar Total Allies 9 | . . 3 . . . . 5 1 . . . . Largest Group 6 | . . 3 . . . . 5 6 6 . . . Highest-Rated Group 154 | . . 40 . . . . 92 154 154 . . . Highest-Rated Ally 61 | . . 16 . . . . 27 61 61 . . . Total Orders 10 | . . . . . . 1 . 4 2 . 3 . STAY 1 | . . . . . . . . 1 . . . . FOLLOW 2 | . . . . . . . . 2 . . . . COLLECT 1 | . . . . . . . . 1 . . . . EXPLORE 6 | . . . . . . 1 . . 2 . 3 . Ally Attacks 54 | . . 17 . . . . 7 . 30 . . . Total Damage 939 | . . 143 . . . . 160 . 636 . . . Kills 8 | . . 2 . . . . 1 . 5 . . . Allies Corrupted 1 | . . . . . . . . . 1 . . . Allies Melted . | . . . . . . . . . . . . . Intel | -11 -10 -10 -10 -9 -8 -8 -8 -8 -6 -6 -6 -6 ------- Run | Yrd Mat Min Exi Min Mat Sto Rec Scr Fac Was Fac Gar Active Infowar (turns) 1832 | 69 405 . . . . . . . 1242 116 . . Terrain 474 | 69 405 . . . . . . . . . . . Decoding 1358 | . . . . . . . . . 1242 116 . . Robot Analysis Total 5 | . 4 . . . . . 1 . . . . . Derelict Logs Recovered 1 | . . . . 1 . . . . . . . . Drone Launches 7 | . . . . . . 2 . . 2 . 3 . Drone Recoveries 2 | . . . . . . . . . 1 . 1 . Decoded 0b10 Intel 75 | . . . . . . . . . 70 5 . . Items 75 | . . . . . . . . . 70 5 . . Exploration | -11 -10 -10 -10 -9 -8 -8 -8 -8 -6 -6 -6 -6 ------------- Run | Yrd Mat Min Exi Min Mat Sto Rec Scr Fac Was Fac Gar Turns Passed 17599 | 146 1842 485 641 389 2369 1935 1684 3451 1242 147 1755 1513 Spaces Moved 9484 | 61 892 236 392 220 1012 738 896 2013 785 198 1184 857 Core 257 | 7 . . . . . . . . . 55 195 . Treads 6906 | 54 892 236 392 220 1012 738 896 2013 408 . 45 . Legs 998 | . . . . . . . . . . . 141 857 Wheels 803 | . . . . . . . . . . . 803 . Hover 520 | . . . . . . . . . 377 143 . . Flight . | . . . . . . . . . . . . . Fastest Speed 50 | 50 160 160 160 160 155 170 170 165 66 50 50 120 Average Speed 147 | 147 160 160 160 160 165 170 170 168 116 61 100 120 Slowest Speed 240 | 160 160 160 160 160 240 170 170 170 165 132 240 190 Overloaded Moves . | . . . . . . . . . . . . . Propulsion Burnouts . | . . . . . . . . . . . . . Robots Hopped . | . . . . . . . . . . . . . Potential Cave-ins . | . . . . . . . . . . . . . Cave-ins Triggered . | . . . . . . . . . . . . . Exploration Rate (%) 61 | 5 93 49 58 63 75 75 98 83 23 97 20 56 Regions Visited 12 Branch Regions 6 Pre-discovered Areas 9 | . 2 1 1 . . . 4 . 1 . . . Known Exits Taken 4 | . . . . . 1 1 1 . . . 1 . Unknown Exits Taken 6 | 1 1 1 1 1 . . . 1 . . . . Scrap Searched 5 | . . . . 1 . . . 4 . . . . Spaces Dug 21 | . . 17 . . . . . . 3 . 1 . Terrain Destroyed 276 | . 4 43 . . 33 85 . . 52 . 29 30 Melee . | . . . . . . . . . . . . . Projectile 8 | . . . . . . . . . 5 . 1 2 AOE 268 | . 4 43 . . 33 85 . . 47 . 28 28 Terrain Rammed . | . . . . . . . . . . . . . Walls Destroyed . | . . . . . . . . . . . . . Machines Disabled . | . . . . . . . . . . . . . Actions | -11 -10 -10 -10 -9 -8 -8 -8 -8 -6 -6 -6 -6 --------- Run | Yrd Mat Min Exi Min Mat Sto Rec Scr Fac Was Fac Gar Total 11564 | 84 1105 290 413 233 1379 1044 989 2083 1032 214 1552 1146 Wait 653 | . 67 . . . 102 59 16 29 130 . 149 101 Move 9473 | 60 891 235 391 219 1011 737 895 2012 785 197 1183 857 Hop . | . . . . . . . . . . . . . Pick Up 129 | 2 20 5 8 . 13 14 1 18 9 1 28 10 Fast Attach 76 | 7 3 2 . . 7 8 2 . 7 2 22 16 Attach 78 | . 1 3 2 . 5 13 4 5 14 5 10 16 Detach 40 | . . 1 2 . 2 1 6 . 10 4 9 5 Swap 129 | . 9 7 1 . 32 28 5 3 15 . 20 9 Drop 123 | . 10 4 9 1 26 12 . 16 14 . 27 4 Fire 796 | 15 104 33 . 12 181 166 27 . 45 4 96 113 Melee . | . . . . . . . . . . . . . Ram 2 | . . . . . . . . . . 1 1 . Kick . | . . . . . . . . . . . . . Crush 9 | . . . . 1 . 1 . . . . 7 . Escape Stasis 15 | . . . . . . . . . . . . 15 Rewire 37 | . . . . . . 4 33 . . . . . Trap 3 | . . . . . . . . . 3 . . . Miscellaneous 1 | . . . . . . 1 . . . . . . Route ------- -11/Scrapyard -10/Materials (discovered 6 exits: *Mat x3 / *Min x2 / Sub) -10/Mines (discovered 3 exits: *Mat x2 / *Exi) -10/Exiles -9/Mines -8/Materials (discovered 3 exits: *Fac / *Sto x2) -8/Storage (discovered 2 exits: Fac / *Rec) -8/Recycling (discovered 2 exits: *Fac / *Scr) -8/Scraptown (discovered 2 exits: *Fac x2) -6/Factory (discovered 4 exits: Fac / [*Low x2] / Ext) -6/Waste -6/Factory (discovered 3 exits: *Fac / [*Low] / Gar) -6/Garrison (discovered 2 exits: *Fac x2) History --------- Turn | Location | Event 10 | -11/Scrapyard | Discovered new exit (range 16) 147 | -11/Scrapyard | Entered Materials 305 | -10/Materials | Build established: Mutant 424 | -10/Materials | Discovered new exit (range 10) 588 | -10/Materials | Discovered new exit (range 16) 882 | -10/Materials | Discovered new exit (range 13) 1195 | -10/Materials | Learned location of 2 exits from Mines 1211 | -10/Materials | Discovered new exit (range 10) 1227 | -10/Materials | Learned location of 1 exit from Storage 1264 | -10/Materials | Learned location of 1 exit from Storage 1278 | -10/Materials | Learned Storage security intel 1303 | -10/Materials | Identified exit to Subcaves 1303 | -10/Materials | Identified exit to Materials 1358 | -10/Materials | Central database locked down 1815 | -10/Materials | Repaired Lgt. Treads 1843 | -10/Materials | Repaired Lgt. Treads 1989 | -10/Materials | Entered Mines 2045 | -10/Mines | Met a Derelict who couldn't figure out how to use a Trap Extractor 2104 | -10/Mines | Core integrity fell below 50% 2146 | -10/Mines | Received a Rocket Launcher from a helpful Derelict 2190 | -10/Mines | Assembled infested the area 2195 | -10/Mines | Assisted by a Guerilla fighting off Assembled 2210 | -10/Mines | Assisted by bots powering up and referring to "LRC-V3" 2228 | -10/Mines | Core integrity fell below 20% 2259 | -10/Mines | Lost 4 allies 2264 | -10/Mines | Destroyed 7 combat bots 2266 | -10/Mines | Lost 3 parts (1p1n1w) 2433 | -10/Mines | Learned location of Storage (-8) 2466 | -10/Mines | Deemed a non-threat by the Exiles lab entrance 2468 | -10/Mines | Discovered new exit (range 5) 2474 | -10/Mines | Entered Exiles 2520 | -10/Exiles | Met 8R-AWN 2544 | -10/Exiles | Met EX-HEX 2636 | -10/Exiles | Met EX-DEC 2663 | -10/Exiles | Learned location of Zion (-7) 2709 | -10/Exiles | Discovered new exit (range 14) 3115 | -10/Exiles | Entered Mines 3480 | -9/Mines | Discovered new exit (range 3) 3504 | -9/Mines | Entered Materials 3504 | -8/Materials | Evolved 4 slots: Propulsion x1, Utility x1, Weapon x2 3505 | -8/Materials | Identified exit to Factory 3799 | -8/Materials | Build established: Tank 3804 | -8/Materials | Discovered new exit (range 14) 3865 | -8/Materials | Garrison activated, responded to threat 4180 | -8/Materials | Build established: Scavenger-Tank 4562 | -8/Materials | Garrison activated, responded to threat 4660 | -8/Materials | Destroyed 7 combat bots 4730 | -8/Materials | Build established: Tank 4774 | -8/Materials | Discovered new exit (range 14) 4851 | -8/Materials | Repaired Autogun 4885 | -8/Materials | Repaired Autogun 5104 | -8/Materials | First assault squad dispatched 5238 | -8/Materials | Destroyed 9 combat bots 5493 | -8/Materials | Sterilization system engaged 5493 | -8/Materials | Non-combat units ordered to evacuate 5535 | -8/Materials | Identified exit to Storage 5593 | -8/Materials | Combat units ordered to evacuate 5793 | -8/Materials | Ambient heat levels rising (+10) 5873 | -8/Materials | Entered Storage 5874 | -8/Storage | Identified exit to Recycling 6518 | -8/Storage | Core integrity fell below 50% 6525 | -8/Storage | Garrison activated, responded to threat 6596 | -8/Storage | Destroyed 10 combat bots 6673 | -8/Storage | First assault squad dispatched 6680 | -8/Storage | Garrison activated, responded to threat 6847 | -8/Storage | Lost 3 parts (1u2w) 6852 | -8/Storage | Core integrity fell below 20% 7039 | -8/Storage | Lost 4 parts (1p1n1u1w) 7202 | -8/Storage | Used back door to open Recycling access 7442 | -8/Storage | Build established: Scavenger-Gunner 7495 | -8/Storage | Garrison activated, responded to threat 7539 | -8/Storage | Lost 3 parts (1p2w) 7808 | -8/Storage | Entered Recycling 8354 | -8/Recycling | Learned 12 Factory zone layouts 8406 | -8/Recycling | Learned Storage stockpile data 8480 | -8/Recycling | Learned location of 1 exit from Extension 8505 | -8/Recycling | Learned Storage security intel 8521 | -8/Recycling | Identified exit to Scraptown 8549 | -8/Recycling | Learned Factory machine intel 8587 | -8/Recycling | Learned location of 1 exit from Extension 8817 | -8/Recycling | Discovered new exit (range 12) 9444 | -8/Recycling | Scanned before Scraplab entrance 9469 | -8/Recycling | Entered Scraplab 9492 | -8/Recycling | Entered Scraptown 9492 | -8/Scraptown | Accompanied by 5 allies 9492 | -8/Scraptown | System corruption cleaned by C-Scrubber 9832 | -8/Scraptown | Discovered new exit (range 13) 9995 | -8/Scraptown | Visited Cave Peace 10008 | -8/Scraptown | Visited SPCMW 10075 | -8/Scraptown | Visited The Evicted 10102 | -8/Scraptown | Visited UFD Registry 10102 | -8/Scraptown | Registered with UFD as "Flashgrid" 10144 | -8/Scraptown | Visited Supply Room 10160 | -8/Scraptown | Visited Red Mages 10437 | -8/Scraptown | Visited Curators Association 10491 | -8/Scraptown | Visited Research Penetration Think Tank 10532 | -8/Scraptown | Visited LU-1G1's Boring Crew 10561 | -8/Scraptown | Visited Scrap Suit Storage 10610 | -8/Scraptown | Visited Derelict Rescue Squad 10628 | -8/Scraptown | Found DRS Beacon 10654 | -8/Scraptown | Visited Botcube Research 10693 | -8/Scraptown | Visited Infowarlord's Domain 10722 | -8/Scraptown | Visited Supply Room 10848 | -8/Scraptown | Visited Science Guys 10911 | -8/Scraptown | Visited Scrapoid Research Area 11311 | -8/Scraptown | Found Botcube 11369 | -8/Scraptown | Found Scrap Suit 12308 | -8/Scraptown | Botcube activated 12330 | -8/Scraptown | Botcube completed mutation into treaded form, armed with 2 cannons. 12618 | -8/Scraptown | Build established: Commander-Gunner 12799 | -8/Scraptown | Met Optimus 12799 | -8/Scraptown | Accepted into 0bPrime 12929 | -8/Scraptown | Discovered new exit (range 3) 12943 | -8/Scraptown | Entered Factory 12943 | -6/Factory | Accompanied by 6 allies 12943 | -6/Factory | Evolved 4 slots: Propulsion x2, Utility x2 12944 | -6/Factory | Identified exit to Factory 12944 | -6/Factory | Identified exit to Extension 12945 | -6/Factory | Loaded intel: 264 machine locations 13126 | -6/Factory | Loaded intel: 8 recycling unit locations 13391 | -6/Factory | Build established: Scavenger-Gunner 13514 | -6/Factory | Spotted B-75 Beast 13764 | -6/Factory | Garrison activated, responded to threat 13785 | -6/Factory | Lost 3 parts (2n1w) 13845 | -6/Factory | Discovered new exit (range 8) 13891 | -6/Factory | Learned location of Protoforge (-2) 14000 | -6/Factory | Discovered new exit (range 16) 14111 | -6/Factory | Repaired Cmb. Airjet 14162 | -6/Factory | Repaired Cmb. Airjet 14185 | -6/Factory | Sucked down chute 14185 | -6/Factory | Entered Waste 14200 | -6/Waste | EMP discharged 14216 | -6/Waste | Spotted C-40 Crusher 14217 | -6/Waste | Spotted C-40 Crusher 14219 | -6/Waste | Spotted C-40 Crusher 14231 | -6/Waste | Build established: Mutant 14233 | -6/Waste | Spotted C-40 Crusher 14254 | -6/Waste | Spotted C-40 Crusher 14256 | -6/Waste | Spotted C-40 Crusher 14265 | -6/Waste | Crushed by Compactor (1 part destroyed, 2 dropped) 14293 | -6/Waste | Crushed by Compactor (1 part destroyed, 2 dropped) 14296 | -6/Waste | Crushed by Compactor (1 part destroyed, 1 dropped) 14300 | -6/Waste | EMP discharged 14300 | -6/Waste | System corruption reached 10% 14301 | -6/Waste | Crushed by Compactor (1 part destroyed, 2 dropped) 14324 | -6/Waste | Discovered new exit (range 13) 14332 | -6/Waste | Lost 4 parts (3n1w) 14332 | -6/Waste | Entered Factory 14462 | -6/Factory | Discovered exit to Factory (range 25) 14722 | -6/Factory | Repaired Broken Cmb. Antigrav System 15345 | -6/Factory | Build established: Scavenger-Gunner 15347 | -6/Factory | Discovered new exit (range 15) 15630 | -6/Factory | Core integrity fell below 50% 16067 | -6/Factory | Identified exit to Garrison 16087 | -6/Factory | Entered Garrison 16136 | -6/Garrison | Garrison Relay disabled 16153 | -6/Garrison | Triggered checkpoint 16184 | -6/Garrison | System corruption reached 30% 16201 | -6/Garrison | Garrison Relay disabled 16413 | -6/Garrison | Triggered checkpoint 16429 | -6/Garrison | Spotted B-75 Beast 16482 | -6/Garrison | Destroyed B-75 Beast 16519 | -6/Garrison | Lost 7 parts (5n2w) 16579 | -6/Garrison | Triggered checkpoint 16645 | -6/Garrison | Triggered checkpoint 16857 | -6/Garrison | Discovered exit to Factory (range 11) 16909 | -6/Garrison | Triggered checkpoint 17121 | -6/Garrison | Triggered checkpoint 17219 | -6/Garrison | Core integrity fell below 20% 17241 | -6/Garrison | Lost 7 parts (1n2u4w) 17391 | -6/Garrison | Triggered checkpoint 17416 | -6/Garrison | Discovered exit to Factory (range 14) 17431 | -6/Garrison | Garrison Relay disabled 17452 | -6/Garrison | Installed Relay Interface Framework 17568 | -6/Garrison | Lost 6 parts (1p2n1u2w) 17601 | -6/Garrison | System corrupted Last Messages --------------- 17530_ Carbon-fiber Leg destroyed. 17533_ Lgt. Fission Core destroyed. 17537_ Slug penetrates Wall. 17537_ Penetrated by Slug. 17537_ Lrn. Proton Cannon destroyed. 17543_ H-66 Slayer misfires. 17545_ System corrupted: Component data lost. 17546_ Penetrated by Slug. 17549_ H-66 Slayer system terminally corrupted. 17552_ Acquired Corrupted Flexi-carbon Leg. 17552_ Integrated Corrupted Flexi-carbon Leg (+9). 17554_ Acquired 20 matter. 17556_ Acquired Corrupted Lgt. Fission Core. 17560_ 7